bitfinex/quotes_BTCUSD_20241102
["timestamp","ask_amount","ask_price","bid_price","bid_amount"]
[1730561215412,1.432321,69319.0,69318.0,0.44143825]
[1730561215662,1.432321,69319.0,69318.0,0.44243825]
[1730561215832,1.432321,69319.0,69318.0,0.44043825]
[1730561216066,1.432321,69319.0,69318.0,0.44243825]
[1730561216486,1.432321,69319.0,69318.0,0.44043825]
[1730561216925,1.432321,69319.0,69318.0,0.44243825]
[1730561217146,1.154921,69319.0,69318.0,0.44243825]
[1730561218863,1.154921,69319.0,69318.0,0.43943825]
[1730561219089,1.154921,69319.0,69318.0,0.44143825]
[1730561219303,1.154921,69319.0,69318.0,0.44243825]
[1730561219508,1.154921,69319.0,69318.0,0.47129825]
[1730561220856,1.154921,69319.0,69318.0,0.37129825]
[1730561221061,1.154921,69319.0,69318.0,0.47129825]
[1730561225920,1.233821,69319.0,69318.0,0.44243825]
[1730561227048,1.233821,69319.0,69318.0,0.44143825]
[1730561228343,1.233821,69319.0,69318.0,0.44043825]
[1730561228791,1.233821,69319.0,69318.0,0.44243825]
[1730561229226,1.233821,69319.0,69318.0,0.44043825]
[1730561229447,1.233821,69319.0,69318.0,0.44243825]
[1730561229669,1.233821,69319.0,69318.0,0.44343825]
[1730561229888,1.233821,69319.0,69318.0,0.44243825]
[1730561230152,1.233821,69319.0,69318.0,0.44143825]
[1730561230361,1.233821,69319.0,69318.0,0.44343825]
[1730561230574,1.34399666,69319.0,69318.0,0.44343825]
[1730561231447,1.34399666,69319.0,69318.0,0.44143825]
[1730561231697,1.34399666,69319.0,69318.0,0.43943825]
[1730561231906,1.34399666,69319.0,69318.0,0.44243825]
[1730561232352,1.34399666,69319.0,69318.0,0.44043825]
[1730561232747,1.34399666,69319.0,69318.0,0.44143825]
[1730561232982,1.34399666,69319.0,69318.0,0.44243825]
[1730561234765,1.34399666,69319.0,69318.0,0.44143825]
[1730561234979,1.34399666,69319.0,69318.0,0.44243825]
[1730561235209,1.34399666,69319.0,69318.0,0.44043825]
[1730561235417,1.34399666,69319.0,69318.0,0.301983]
[1730561235625,1.63167232,69319.0,69318.0,0.303983]
[1730561235833,1.53500465,69319.0,69318.0,0.303983]
[1730561236246,1.54000465,69319.0,69318.0,0.301983]
[1730561236696,1.54000465,69319.0,69318.0,0.303983]
[1730561237855,1.54000465,69319.0,69318.0,0.302983]
[1730561238060,1.54000465,69319.0,69318.0,0.303983]
[1730561238934,1.65018031,69319.0,69318.0,0.203]
[1730561239162,1.65018031,69319.0,69318.0,0.203983]
[1730561239375,1.65018031,69319.0,69318.0,0.303983]
[1730561240638,1.65018031,69319.0,69318.0,0.203]
[1730561241058,1.65018031,69319.0,69318.0,0.003]
[1730561242484,1.65018031,69319.0,69318.0,0.103]
[1730561242644,1.75116231,69319.0,69318.0,0.103]
[1730561242863,1.75316231,69319.0,69318.0,0.003]
[1730561243080,1.77476298,69319.0,69318.0,0.003]
[1730561243920,1.73765432,69319.0,69318.0,0.003]
[1730561244179,1.77475489,69319.0,69318.0,0.003]
[1730561244612,1.77275489,69319.0,69318.0,0.003]
[1730561244785,1.73965432,69319.0,69318.0,0.003]
[1730561245207,1.63667232,69319.0,69318.0,0.003]
[1730561245659,1.68526995,69319.0,69318.0,0.003]
[1730561246012,1.78625195,69319.0,69318.0,0.003]
[1730561247358,1.75115261,69319.0,69318.0,0.003]
[1730561247718,1.79704715,69319.0,69318.0,0.003]
[1730561248579,1.75924125,69319.0,69318.0,0.003]
[1730561248794,1.79701837,69319.0,69318.0,0.003]
[1730561250349,1.68524291,69319.0,69318.0,0.003]
[1730561250626,1.53998849,69319.0,69318.0,0.003]
[1730561251081,1.65016415,69319.0,69318.0,0.003]
[1730561251310,0.005,69317.0,69316.0,0.302956]
[1730561251544,0.005,69317.0,69316.0,0.402956]
[1730561251545,1.17259183,69317.0,69316.0,0.402956]
[1730561251750,1.17259183,69317.0,69316.0,0.502956]
[1730561251954,1.1591,69317.0,69316.0,0.502956]
[1730561252831,1.1541,69317.0,69316.0,0.502956]
[1730561253241,1.1591,69317.0,69316.0,0.504956]
[1730561254134,1.1591,69317.0,69316.0,0.505956]
[1730561256080,1.1541,69317.0,69316.0,0.64441125]
[1730561256545,1.1541,69317.0,69316.0,0.64241125]
[1730561257442,1.1541,69317.0,69316.0,0.64141125]
[1730561257855,1.1541,69317.0,69316.0,0.64341125]
[1730561258320,1.1541,69317.0,69316.0,0.64241125]
[1730561258772,1.1541,69317.0,69316.0,0.64541125]
[1730561264318,1.27777802,69317.0,69316.0,0.64541125]
[1730561264529,1.46897802,69317.0,69316.0,0.403956]
[1730561264759,1.54787802,69317.0,69316.0,0.402956]
[1730561265018,1.54787802,69317.0,69316.0,0.403956]
[1730561265240,1.54787802,69317.0,69316.0,0.502956]
[1730561265241,1.43770236,69317.0,69316.0,0.502956]
[1730561265459,1.36167802,69317.0,69316.0,0.504956]
[1730561265678,1.28277802,69317.0,69316.0,0.505956]
[1730561266342,1.28278129,69317.0,69316.0,0.505956]
[1730561266970,1.17260563,69317.0,69316.0,0.505956]
[1730561267190,1.17260563,69317.0,69316.0,0.503956]
[1730561267417,1.17260563,69317.0,69316.0,0.506956]
[1730561267628,1.17260563,69317.0,69316.0,0.504956]
[1730561267834,1.28278129,69317.0,69316.0,0.502956]
[1730561268219,1.28278129,69317.0,69316.0,0.505956]
[1730561269775,1.28278403,69317.0,69316.0,0.505956]
[1730561270184,1.29629256,69317.0,69316.0,0.505956]
[1730561270383,1.17260853,69317.0,69316.0,0.505956]
[1730561271307,1.28278419,69317.0,69316.0,0.503956]
[1730561271507,1.28278419,69317.0,69316.0,0.504956]
[1730561271836,1.28278419,69317.0,69316.0,0.505956]
[1730561272755,1.17260853,69317.0,69316.0,0.505956]
[1730561272952,1.28278419,69317.0,69316.0,0.505956]
[1730561273152,1.17260853,69317.0,69316.0,0.505956]
[1730561273357,1.17260984,69317.0,69316.0,0.505956]
[1730561274202,1.2827855,69317.0,69316.0,0.505956]
[1730561275299,1.2827855,69317.0,69316.0,0.203986]
[1730561275523,1.2827855,69317.0,69316.0,0.002]
[1730561275732,1.5458855,69317.0,69316.0,0.102]
[1730561276114,1.56750265,69317.0,69316.0,0.1]
[1730561276558,1.66848765,69317.0,69316.0,0.102]
[1730561276730,1.57831123,69317.0,69316.0,0.102]
[1730561276956,1.57831123,69317.0,69314.0,0.100989]
[1730561276957,0.005,69316.0,69315.0,0.1]
[1730561277156,0.11517566,69316.0,69315.0,0.1]
[1730561277369,1.28278638,69316.0,69315.0,0.1]
[1730561277595,0.005,69312.0,69311.0,0.1]
[1730561277795,0.005,69310.0,69309.0,0.200996]
[1730561278008,0.11517566,69310.0,69309.0,0.300996]
[1730561278231,1.28278682,69310.0,69309.0,0.200996]
[1730561279064,1.28278682,69310.0,69309.0,0.300996]
[1730561279481,1.28278682,69310.0,69306.0,0.1]
[1730561279482,0.005,69307.0,69306.0,0.1]
[1730561279687,0.23886352,69307.0,69306.0,0.201001]
[1730561279909,1.39296352,69307.0,69306.0,0.1]
[1730561280327,1.39296352,69307.0,69306.0,0.201001]
[1730561280863,1.40647766,69307.0,69306.0,0.201001]
[1730561281118,1.40647766,69307.0,69306.0,0.203001]
[1730561281335,1.47146546,69307.0,69306.0,0.002]
[1730561281545,1.60489942,69307.0,69306.0,0.003]
[1730561281774,1.59408777,69307.0,69306.0,0.002]
[1730561281977,1.59408777,69307.0,69306.0,0.003]
[1730561282156,1.49308877,69307.0,69306.0,0.003]
[1730561282389,1.59408777,69307.0,69306.0,0.001]
[1730561282802,1.59408777,69307.0,69306.0,0.003]
[1730561283011,1.59608777,69307.0,69306.0,0.003]
[1730561283187,1.57245368,69307.0,69306.0,0.003]
[1730561285573,1.36127902,69307.0,69306.0,0.003]
[1730561285800,1.28277902,69307.0,69306.0,0.104001]
[1730561286657,1.28277902,69307.0,69306.0,0.001]
[1730561286882,1.28277902,69307.0,69306.0,0.003]
[1730561287100,1.28277902,69307.0,69306.0,0.002]
[1730561287309,1.28277902,69307.0,69306.0,0.101001]
[1730561287539,1.28277902,69307.0,69306.0,0.102001]
[1730561288240,1.28277902,69307.0,69306.0,0.101001]
[1730561288736,1.28277902,69307.0,69306.0,0.104001]
[1730561289193,1.28277902,69307.0,69306.0,0.102001]
[1730561289643,1.28277902,69307.0,69306.0,0.104001]
[1730561290104,1.28276514,69307.0,69306.0,0.104001]
[1730561293223,1.3929408,69307.0,69306.0,0.104001]
[1730561293428,1.3929408,69307.0,69306.0,0.003]
[1730561293635,1.49394047,69307.0,69306.0,0.003]
[1730561294560,1.49476147,69307.0,69306.0,0.003]
[1730561294765,1.49476147,69307.0,69306.0,0.002]
[1730561295007,1.49476147,69307.0,69306.0,0.003]
[1730561295456,0.005,69304.0,69303.0,0.101005]
[1730561295670,1.17259015,69304.0,69303.0,0.101005]
[1730561296921,1.16759015,69304.0,69303.0,0.60195052]
[1730561297152,1.16759015,69304.0,69303.0,0.462505]
[1730561297153,1.1591,69304.0,69303.0,0.462505]
[1730561297358,1.1591,69304.0,69303.0,0.463505]
[1730561297561,1.1541,69304.0,69303.0,0.463505]
[1730561297958,1.1591,69304.0,69303.0,0.463505]
[1730561298222,1.1591,69304.0,69303.0,0.462505]
[1730561298429,1.1591,69304.0,69303.0,0.460505]
[1730561298635,1.1591,69304.0,69303.0,0.461505]
[1730561298781,1.1591,69304.0,69303.0,0.463505]
[1730561299591,1.1591,69304.0,69303.0,0.461505]
[1730561300069,1.1591,69304.0,69303.0,0.462505]
[1730561300424,1.1591,69304.0,69303.0,0.463505]
[1730561304275,1.17260194,69304.0,69303.0,0.463505]
[1730561304500,1.1591,69304.0,69303.0,0.463505]
[1730561304876,1.17260239,69304.0,69303.0,0.463505]
[1730561306517,1.16760239,69304.0,69303.0,0.463505]
[1730561306816,1.16760729,69304.0,69303.0,0.463505]
[1730561307798,1.16760729,69304.0,69303.0,0.462505]
[1730561308104,1.16760729,69304.0,69303.0,0.463505]
[1730561308320,1.1541,69304.0,69303.0,0.461505]
[1730561308717,1.1541,69304.0,69303.0,0.463505]
[1730561308926,1.1541,69304.0,69303.0,0.60196025]
[1730561310079,1.1541,69304.0,69303.0,0.70196025]
[1730561310878,1.16761333,69304.0,69303.0,0.70196025]
[1730561311088,1.1541,69304.0,69303.0,0.70096025]
[1730561311446,1.1541,69304.0,69303.0,0.70196025]
[1730561311849,1.1541,69304.0,69303.0,0.69996025]
[1730561312262,1.1541,69304.0,69303.0,0.70196025]
[1730561312639,1.1541,69304.0,69303.0,0.70096025]
[1730561313245,1.1541,69304.0,69303.0,0.69996025]
[1730561313484,1.1541,69304.0,69303.0,0.70196025]
[1730561313705,1.1541,69304.0,69303.0,0.70296025]
[1730561314948,1.1541,69304.0,69303.0,0.70096025]
[1730561315367,1.1541,69304.0,69303.0,0.70296025]
[1730561315778,1.1541,69304.0,69303.0,0.70096025]
[1730561316336,1.1541,69304.0,69303.0,0.70196025]
[1730561316555,1.1541,69304.0,69303.0,0.70096025]
[1730561316769,1.1541,69304.0,69303.0,0.70196025]
[1730561317621,1.154921,69304.0,69303.0,0.70096025]
[1730561317815,1.154921,69304.0,69303.0,0.70196025]
[1730561318040,1.154921,69304.0,69303.0,0.69996025]
[1730561318423,1.154921,69304.0,69303.0,0.70196025]
[1730561319280,1.154921,69304.0,69303.0,0.69996025]
[1730561319484,1.154921,69304.0,69303.0,0.70096025]
[1730561319894,1.154921,69304.0,69303.0,0.70196025]
[1730561320932,1.154921,69304.0,69303.0,0.60196025]
[1730561321625,1.154921,69304.0,69303.0,0.70196025]
[1730561324598,1.154921,69304.0,69303.0,0.62686025]
[1730561324811,1.154921,69304.0,69303.0,0.44246025]
[1730561326854,1.154921,69304.0,69303.0,0.44146025]
[1730561327014,1.154921,69304.0,69303.0,0.44046025]
[1730561327397,1.154921,69304.0,69303.0,0.43946025]
[1730561327615,1.154921,69304.0,69303.0,0.44146025]
[1730561328067,1.154921,69304.0,69303.0,0.43946025]
[1730561328276,1.154921,69304.0,69303.0,0.44146025]
[1730561328828,1.154921,69304.0,69303.0,0.61816025]
[1730561329043,1.154921,69304.0,69303.0,0.62016025]
[1730561329288,1.154921,69304.0,69303.0,0.62116025]
[1730561329433,1.154921,69304.0,69303.0,0.62016025]
[1730561329915,1.154921,69304.0,69303.0,0.69926025]
[1730561330080,1.154921,69304.0,69303.0,0.69826025]
[1730561330282,1.154921,69304.0,69303.0,0.69626025]
[1730561330459,1.154921,69304.0,69303.0,0.69726025]
[1730561330657,1.154921,69304.0,69303.0,0.69826025]
[1730561331039,1.154921,69304.0,69303.0,0.69926025]
[1730561331413,1.154921,69304.0,69303.0,0.69726025]
[1730561331633,1.154921,69304.0,69303.0,0.69926025]
[1730561332993,1.154921,69304.0,69303.0,0.69826025]
[1730561333177,1.154921,69304.0,69303.0,0.69926025]
[1730561333440,1.154921,69304.0,69303.0,0.69726025]
[1730561333662,1.154921,69304.0,69303.0,0.69826025]
[1730561333852,1.154921,69304.0,69303.0,0.70026025]
[1730561334293,1.154921,69304.0,69303.0,0.69826025]
[1730561334643,1.154921,69304.0,69303.0,0.70026025]
[1730561335231,1.154921,69304.0,69303.0,0.69826025]
[1730561335630,1.154921,69304.0,69303.0,0.69626025]
[1730561335833,1.154921,69304.0,69303.0,0.69726025]
[1730561336692,1.26509666,69304.0,69303.0,0.69826025]
[1730561337133,1.26509666,69304.0,69303.0,0.69926025]
[1730561339708,1.26509666,69304.0,69303.0,0.72812025]
[1730561340404,1.26509666,69304.0,69303.0,0.44246025]
[1730561341237,1.26509666,69304.0,69303.0,0.44046025]
[1730561341542,1.26509666,69304.0,69303.0,0.44246025]
[1730561342184,1.26509666,69304.0,69303.0,0.44046025]
[1730561342360,1.26509666,69304.0,69303.0,0.43946025]
[1730561342782,1.26509666,69304.0,69303.0,0.44046025]
[1730561343340,1.26509666,69304.0,69303.0,0.44346025]
[1730561352514,1.37527232,69304.0,69303.0,0.44346025]
[1730561352721,1.26509666,69304.0,69303.0,0.44346025]
[1730561353376,1.26509666,69304.0,69303.0,0.44146025]
[1730561354048,1.26509666,69304.0,69303.0,0.44046025]
[1730561354486,1.26509666,69304.0,69303.0,0.44246025]
[1730561356729,1.26509666,69304.0,69303.0,0.43946025]
[1730561357118,1.26509666,69304.0,69303.0,0.44246025]
[1730561357320,1.26509666,69304.0,69303.0,0.44146025]
[1730561357576,1.26509666,69304.0,69303.0,0.43946025]
[1730561359177,1.26509666,69304.0,69303.0,0.44146025]
[1730561359398,1.26509666,69304.0,69303.0,0.44246025]
[1730561359588,1.26509666,69304.0,69303.0,0.44046025]
[1730561360043,1.26509666,69304.0,69303.0,0.44346025]
[1730561361215,1.154921,69304.0,69303.0,0.44346025]
[1730561362203,1.154921,69304.0,69303.0,0.43946025]
[1730561362410,1.154921,69304.0,69303.0,0.44146025]
[1730561362620,1.154921,69304.0,69303.0,0.44246025]
[1730561362810,1.26509666,69304.0,69303.0,0.44246025]
[1730561363142,1.26509666,69304.0,69303.0,0.44146025]
[1730561363371,1.26509666,69304.0,69303.0,0.44346025]
[1730561365926,1.154921,69304.0,69303.0,0.62456025]
[1730561366358,1.154921,69304.0,69303.0,0.70016025]
[1730561366770,1.154921,69304.0,69303.0,0.69816025]
[1730561367236,1.154921,69304.0,69303.0,0.69916025]
[1730561367671,1.154921,69304.0,69303.0,0.70132347]
[1730561368082,1.154921,69304.0,69303.0,0.69932347]
[1730561368502,1.154921,69304.0,69303.0,0.70132347]
[1730561369336,1.154921,69304.0,69303.0,0.60132347]
[1730561369533,1.154921,69304.0,69303.0,0.70632347]
[1730561369760,1.154921,69304.0,69303.0,0.73518347]
[1730561370918,1.154921,69304.0,69303.0,0.77819635]
[1730561371418,1.154921,69304.0,69303.0,0.73518347]
[1730561371813,1.154921,69304.0,69303.0,0.77819635]
[1730561372018,1.154921,69304.0,69303.0,0.73518347]
[1730561372219,1.154921,69304.0,69303.0,0.77818343]
[1730561373564,1.154921,69304.0,69303.0,0.73518347]
[1730561373776,1.154921,69304.0,69303.0,0.77818343]
[1730561373986,1.154921,69304.0,69303.0,0.77718343]
[1730561374205,1.154921,69304.0,69303.0,0.77717388]
[1730561374423,1.154921,69304.0,69303.0,0.80117388]
[1730561374931,1.154921,69304.0,69303.0,0.80016817]
[1730561375151,1.154921,69304.0,69303.0,0.80216817]
[1730561375777,1.154921,69304.0,69303.0,0.80016817]
[1730561376460,1.154921,69304.0,69303.0,0.80116817]
[1730561376676,1.154921,69304.0,69303.0,0.80015845]
[1730561376908,1.154921,69304.0,69303.0,0.81115845]
[1730561377591,1.154921,69304.0,69303.0,0.76618347]
[1730561377815,1.154921,69304.0,69303.0,0.80915845]
[1730561378047,1.154921,69304.0,69303.0,0.76818347]
[1730561378717,1.154921,69304.0,69303.0,0.75618347]
[1730561378978,1.154921,69304.0,69303.0,0.75818347]
[1730561379202,1.154921,69304.0,69303.0,0.82164594]
[1730561379648,1.154921,69304.0,69303.0,0.75818347]
[1730561379872,1.097205,69304.0,69303.0,0.80114579]
[1730561380102,1.097205,69304.0,69303.0,0.75818347]
[1730561380318,1.097205,69304.0,69303.0,0.75718347]
[1730561380536,1.097205,69304.0,69303.0,0.75818347]
[1730561381194,1.097205,69304.0,69303.0,0.75618347]
[1730561381394,1.097205,69304.0,69303.0,0.84274347]
[1730561381571,1.097205,69304.0,69303.0,0.76818347]
[1730561381954,1.097205,69304.0,69303.0,0.81114579]
[1730561381955,1.068347,69304.0,69303.0,0.81114579]
[1730561382157,1.068347,69304.0,69303.0,0.76818347]
[1730561382356,1.068347,69304.0,69303.0,0.81113224]
[1730561382786,1.068347,69304.0,69303.0,0.76818347]
[1730561383416,1.068347,69304.0,69303.0,1.10813616]
[1730561383623,0.866341,69304.0,69303.0,1.07018347]
[1730561383898,0.866341,69304.0,69303.0,0.76818347]
[1730561385310,0.866341,69304.0,69303.0,0.66818347]
[1730561385484,0.866341,69304.0,69303.0,0.76818347]
[1730561385690,0.866341,69304.0,69303.0,0.81112769]
[1730561386128,0.866341,69304.0,69303.0,0.76818347]
[1730561387499,0.866341,69304.0,69303.0,0.76618347]
[1730561387956,0.866341,69304.0,69303.0,0.76818347]
[1730561388616,0.866341,69304.0,69303.0,0.76718347]
[1730561388824,0.866341,69304.0,69303.0,0.76818347]
[1730561389232,0.866341,69304.0,69303.0,1.06518347]
[1730561389802,0.866341,69304.0,69303.0,1.05518347]
[1730561390221,0.866341,69304.0,69303.0,1.05418347]
[1730561390652,0.866341,69304.0,69303.0,1.05318347]
[1730561390987,0.866341,69304.0,69303.0,1.05518347]
[1730561391200,0.866341,69304.0,69303.0,0.80112702]
[1730561391428,0.866341,69304.0,69303.0,0.75818347]
[1730561391818,0.866341,69304.0,69303.0,0.75518347]
[1730561392041,0.866341,69304.0,69303.0,0.75618347]
[1730561392247,0.866341,69304.0,69303.0,0.75818347]
[1730561393397,0.866341,69304.0,69303.0,0.75918347]
[1730561393823,0.866341,69304.0,69303.0,0.68158347]
[1730561394159,0.866341,69304.0,69303.0,0.68358347]
[1730561397039,0.866341,69304.0,69303.0,0.68522547]
[1730561397248,0.866341,69304.0,69303.0,0.77812547]
[1730561397459,0.866341,69304.0,69303.0,0.48112547]
[1730561397907,0.97651666,69304.0,69303.0,0.47412547]
[1730561398110,0.97651666,69304.0,69303.0,0.49376547]
[1730561398538,0.97651666,69304.0,69303.0,0.49476547]
[1730561398755,0.97651666,69304.0,69303.0,0.49276547]
[1730561399169,0.97651666,69304.0,69303.0,0.49376547]
[1730561399377,0.97651666,69304.0,69303.0,0.59276547]
[1730561400021,0.97651666,69304.0,69303.0,0.59376547]
[1730561400230,0.97651666,69304.0,69303.0,0.59576547]
[1730561400686,1.35199232,69304.0,69303.0,0.44526547]
[1730561400903,1.35199232,69304.0,69303.0,0.44726547]
[1730561401779,1.24181666,69304.0,69303.0,0.44726547]
[1730561403086,1.24181666,69304.0,69303.0,0.44526547]
[1730561403464,1.24181666,69304.0,69303.0,0.44726547]
[1730561403772,1.24181666,69304.0,69303.0,0.44526547]
[1730561404105,1.24181666,69304.0,69303.0,0.44326547]
[1730561404319,1.24181666,69304.0,69303.0,0.44526547]
[1730561404775,1.24181666,69304.0,69303.0,0.48821741]
[1730561405006,1.24181666,69304.0,69303.0,0.44326547]
[1730561405215,1.24181666,69304.0,69303.0,0.44426547]
[1730561405708,0.866341,69304.0,69303.0,0.44526547]
[1730561406360,0.866341,69304.0,69303.0,0.44726547]
[1730561407062,0.866341,69304.0,69303.0,0.44526547]
[1730561407283,0.866341,69304.0,69303.0,0.44726547]
[1730561407942,0.866341,69304.0,69303.0,0.44526547]
[1730561408588,0.866341,69304.0,69303.0,0.45026547]
[1730561409033,0.866341,69304.0,69303.0,0.50212547]
[1730561409318,0.866341,69304.0,69303.0,0.73556547]
[1730561409510,0.722051,69304.0,69303.0,0.77042547]
[1730561409732,0.577761,69304.0,69303.0,0.77142547]
[1730561410165,0.577761,69304.0,69303.0,0.77542547]
[1730561410386,1.082781,69304.0,69303.0,0.76942547]
[1730561410821,0.938491,69304.0,69303.0,0.77042547]
[1730561411041,0.938491,69304.0,69303.0,0.79221595]
[1730561411264,0.938491,69304.0,69303.0,0.79421595]
[1730561411708,0.851917,69304.0,69303.0,0.79421595]
[1730561411835,0.794201,69304.0,69303.0,0.83717976]
[1730561412040,0.794201,69304.0,69303.0,0.81538928]
[1730561412242,0.794201,69304.0,69303.0,0.77242547]
[1730561412472,0.794201,69304.0,69303.0,0.879835]
[1730561412677,0.794201,69304.0,69303.0,0.884835]
[1730561412678,0.707627,69304.0,69303.0,0.884835]
[1730561412876,0.649911,69304.0,69303.0,0.77742547]
[1730561413715,0.505621,69304.0,69303.0,0.77742547]
[1730561414800,0.476763,69304.0,69303.0,0.77742547]
[1730561414951,1.097225,69304.0,69303.0,0.77742547]
[1730561415152,1.068367,69304.0,69303.0,0.77742547]
[1730561415355,1.010651,69304.0,69303.0,0.77742547]
[1730561415783,0.981793,69304.0,69303.0,0.77742547]
[1730561415988,0.924077,69304.0,69303.0,0.77742547]
[1730561416167,0.895219,69304.0,69303.0,0.77742547]
[1730561416371,0.866361,69304.0,69303.0,0.77742547]
[1730561416842,0.808645,69304.0,69303.0,0.77742547]
[1730561417048,0.449771,69304.0,69303.0,0.99397099]
[1730561417269,0.000821,69307.0,69306.0,0.33116]
[1730561417499,0.650111,69307.0,69306.0,1.90761164]
[1730561418349,0.650111,69307.0,69306.0,2.23433282]
[1730561418558,0.650111,69307.0,69306.0,2.0177873]
[1730561418766,0.650111,69307.0,69306.0,1.9197873]
[1730561418978,0.650111,69307.0,69306.0,2.6887873]
[1730561419183,0.650111,69307.0,69306.0,2.0207873]
[1730561420282,0.650111,69307.0,69306.0,4.34596515]
[1730561420283,0.10927298,69307.0,69306.0,4.34596515]
[1730561420490,0.10927298,69307.0,69306.0,3.46352296]
[1730561420491,0.03885998,69307.0,69306.0,3.46352296]
[1730561420715,0.03885998,69307.0,69306.0,3.3533473]
[1730561420924,0.000821,69317.0,69316.0,0.64831132]
[1730561421137,0.21654552,69337.0,69334.0,0.01]
[1730561421358,0.21654552,69337.0,69334.0,1.46801506]
[1730561421575,0.21654552,69344.0,69334.0,2.21513091]
[1730561421576,0.649848,69335.0,69334.0,2.21513091]
[1730561421834,0.649848,69335.0,69334.0,7.25610791]
[1730561422035,0.649848,69335.0,69334.0,7.26110791]
[1730561422238,0.649848,69335.0,69334.0,7.28996791]
[1730561422627,0.649848,69335.0,69334.0,7.34744548]
[1730561422775,0.649848,69335.0,69334.0,7.34944548]
[1730561422976,0.649848,69335.0,69334.0,7.34444548]
[1730561423172,0.649848,69335.0,69334.0,7.35044548]
[1730561423536,0.649848,69335.0,69334.0,7.34744548]
[1730561423672,0.649848,69335.0,69334.0,7.34944548]
[1730561424017,0.649848,69335.0,69334.0,7.17979225]
[1730561424264,0.649848,69335.0,69334.0,7.18179225]
[1730561424487,0.649848,69335.0,69334.0,7.18979225]
[1730561425111,0.649848,69335.0,69334.0,7.17979225]
[1730561425325,0.649848,69335.0,69334.0,7.17479225]
[1730561425540,0.649848,69335.0,69334.0,7.17779225]
[1730561425766,0.649848,69335.0,69334.0,7.17479225]
[1730561425981,0.649848,69335.0,69334.0,7.18179225]
[1730561426333,0.649848,69335.0,69334.0,7.17979225]
[1730561426536,0.649848,69335.0,69334.0,7.18979225]
[1730561426715,0.649848,69335.0,69334.0,7.19179225]
[1730561426925,0.649848,69335.0,69334.0,7.18679225]
[1730561427166,0.649848,69335.0,69334.0,7.19179225]
[1730561427714,0.649848,69335.0,69334.0,7.18679225]
[1730561427946,0.649848,69335.0,69334.0,7.19179225]
[1730561428206,0.649848,69335.0,69334.0,7.18679225]
[1730561428425,0.649848,69335.0,69334.0,7.18479225]
[1730561428839,0.649848,69335.0,69334.0,7.12573125]
[1730561429266,0.649848,69335.0,69334.0,7.12373125]
[1730561429523,0.649848,69335.0,69334.0,7.11373125]
[1730561429716,1.154648,69335.0,69334.0,7.11573125]
[1730561430123,1.154648,69335.0,69334.0,7.06245125]
[1730561430349,1.154648,69335.0,69334.0,6.37795425]
[1730561430563,1.154648,69335.0,69334.0,6.34909425]
[1730561430779,1.154648,69335.0,69334.0,5.27026325]
[1730561431432,1.154648,69335.0,69334.0,4.90009425]
[1730561432307,1.154648,69335.0,69334.0,2.07495525]
[1730561432472,1.336948,69335.0,69334.0,2.18443125]
[1730561432676,1.336948,69335.0,69334.0,0.65548325]
[1730561432677,1.416548,69335.0,69334.0,0.65548325]
[1730561432888,1.416548,69335.0,69334.0,0.49962825]
[1730561433102,1.416548,69335.0,69334.0,0.49762825]
[1730561433816,1.416548,69335.0,69334.0,0.14045525]
[1730561434249,1.416548,69335.0,69334.0,0.13845525]
[1730561434439,0.005,69334.0,69333.0,0.3715]
[1730561434663,0.2718,69331.0,69322.0,0.02255136]
[1730561434837,0.0814,69329.0,69324.0,0.37621025]
[1730561435053,0.5048,69328.0,69325.0,0.341857]
[1730561435220,0.5048,69328.0,69327.0,0.1]
[1730561435429,1.15389,69328.0,69327.0,0.94624925]
[1730561435589,1.15389,69328.0,69327.0,0.85524925]
[1730561435804,1.15389,69328.0,69327.0,0.80506425]
[1730561436038,1.15389,69328.0,69327.0,0.53506425]
[1730561436657,1.15389,69328.0,69327.0,0.23845525]
[1730561436870,1.32154323,69328.0,69327.0,0.23845525]
[1730561437090,1.32154323,69328.0,69327.0,0.24045525]
[1730561437301,1.32154323,69328.0,69327.0,0.35352125]
[1730561439829,1.32154323,69328.0,69327.0,0.35152125]
[1730561440256,1.32154323,69328.0,69327.0,0.35352125]
[1730561441995,1.15389,69328.0,69327.0,0.35352125]
[1730561444114,1.15389,69328.0,69327.0,0.24045525]
[1730561444964,1.15389,69328.0,69327.0,2.02604825]
[1730561445375,1.15389,69328.0,69327.0,2.00715825]
[1730561448666,1.15389,69328.0,69327.0,2.00515825]
[1730561448917,1.15389,69328.0,69327.0,2.00715825]
[1730561450105,1.15389,69328.0,69327.0,2.10812825]
[1730561454686,1.2640004,69328.0,69327.0,2.10812825]
[1730561456716,1.15389,69328.0,69327.0,2.10812825]
[1730561456921,1.15389,69328.0,69327.0,2.14479055]
[1730561457123,1.15389,69328.0,69327.0,2.13612825]
[1730561457755,1.15389,69328.0,69327.0,2.12912825]
[1730561457956,1.15389,69328.0,69327.0,2.13412825]
[1730561458209,1.5538108,69328.0,69327.0,2.11312825]
[1730561458661,1.4437004,69328.0,69327.0,2.11312825]
[1730561459283,1.4437004,69328.0,69327.0,2.11112825]
[1730561459758,1.4437004,69328.0,69327.0,2.10812825]
[1730561459980,1.5538108,69328.0,69327.0,2.10812825]
[1730561460189,1.2640004,69328.0,69327.0,2.11312825]
[1730561460551,1.15389,69328.0,69327.0,2.11312825]
[1730561461158,1.15389,69328.0,69327.0,2.11112825]
[1730561461537,1.15389,69328.0,69327.0,2.11312825]
[1730561462052,1.15389,69328.0,69327.0,2.11112825]
[1730561462476,1.15389,69328.0,69327.0,2.10812825]
[1730561462667,1.15389,69328.0,69327.0,2.11312825]
[1730561463339,1.15389,69328.0,69327.0,2.15572573]
[1730561463536,1.15389,69328.0,69327.0,2.13612825]
[1730561463738,1.15389,69328.0,69327.0,2.31402825]
[1730561464089,1.15389,69328.0,69327.0,2.34286825]
[1730561464499,1.15389,69328.0,69327.0,2.34086825]
[1730561464897,1.15389,69328.0,69327.0,0.57616525]
[1730561465295,1.15389,69328.0,69327.0,5.70054225]
[1730561465527,1.067346,69328.0,69327.0,5.70054225]
[1730561465682,0.951954,69328.0,69327.0,5.70754225]
[1730561465889,0.86541,69328.0,69327.0,5.70754225]
[1730561466184,0.86541,69328.0,69327.0,6.95354225]
[1730561466392,0.86541,69328.0,69327.0,7.03810225]
[1730561466591,0.86541,69328.0,69327.0,7.07886919]